fUST/lending_fUST_20250614
["ID","MTS","AMOUNT","RATE_DAILY","PERIOD"]
[365732291,1749858638791,-460.0,0.00021809,4]
[365732292,1749858638801,-460.0,0.00021809,4]
[365732293,1749858638810,-440.0,0.00021809,4]
[365732294,1749858638819,-460.0,0.0002181,4]
[365732295,1749858638828,-460.0,0.0002181,4]
[365732296,1749858638838,-460.0,0.0002181,4]
[365732297,1749858638847,-189.11671104,0.0002181,4]
[365732298,1749858638856,-460.0,0.0002181,4]
[365732299,1749858638865,-426.50166752,0.0002181,4]
[365732300,1749858638875,-460.0,0.0002181,4]
[365732301,1749858638884,-440.0,0.0002181,4]
[365732302,1749858638893,-460.0,0.0002181,4]
[365732303,1749858638902,-460.0,0.0002181,4]
[365732304,1749858638912,-460.0,0.0002181,4]
[365732305,1749858638923,-460.0,0.0002181,4]
[365732306,1749858638933,-440.0,0.0002181,4]
[365732307,1749858638942,-400.0,0.0002181,4]
[365732308,1749858638951,-440.0,0.0002181,4]
[365732309,1749858638961,-336.44959093,0.0002181,4]
[365732310,1749858638970,-460.0,0.0002181,4]
[365732311,1749858638979,-400.0,0.0002181,4]
[365732312,1749858638988,-460.0,0.0002181,4]
[365732313,1749858638998,-460.0,0.0002181,4]
[365732314,1749858639007,-460.0,0.0002181,4]
[365732315,1749858639016,-483.39925872,0.0002181,4]
[365732316,1749858639025,-460.0,0.0002181,4]
[365732317,1749858639035,-460.0,0.0002181,4]
[365732318,1749858639044,-460.0,0.0002181,4]
[365732319,1749858639053,-460.0,0.0002181,4]
[365732320,1749858639063,-460.0,0.0002181,4]
[365732321,1749858639073,-460.0,0.0002181,4]
[365732322,1749858639083,-9492.65320149,0.0002181,2]
[365732323,1749858639092,-201.0,0.00021825,2]
[365732324,1749858639101,-201.0,0.00021981,2]
[365732325,1749858639111,-165.0,0.00022,2]
[365732326,1749858639121,-242.13737178,0.00022003,4]
[365732327,1749858639131,-420.0,0.00022003,4]
[365732328,1749858639140,-400.0,0.00022003,4]
[365732329,1749858639150,-460.0,0.00022003,4]
[365732330,1749858639162,-500.0,0.00022003,4]
[365732331,1749858639175,-435.57363174,0.00022003,4]
[365732332,1749858639185,-460.0,0.00022003,2]
[365732333,1749858639195,-433.43119107,0.00022003,4]
[365732334,1749858639205,-460.0,0.00022003,4]
[365732335,1749858639215,-440.0,0.00022003,4]
[365732336,1749858639224,-460.0,0.00022083,4]
[365732337,1749858639234,-460.0,0.00022083,4]
[365732338,1749858639244,-1299.73,0.00022083,4]
[365732339,1749858639253,-460.0,0.00022083,4]
[365732340,1749858639262,-460.0,0.00022083,4]
[365732341,1749858639271,-460.0,0.00022084,4]
[365732342,1749858639281,-282.56494936,0.00022084,4]
[365732343,1749858639291,-564.84,0.00022084,4]
[365732344,1749858639300,-460.0,0.00022084,4]
[365732345,1749858639309,-460.0,0.00022084,4]
[365732346,1749858639319,-586.26772198,0.00022084,4]
[365732347,1749858639328,-460.0,0.00022084,4]
[365732348,1749858639337,-460.0,0.00022084,4]
[365732349,1749858639347,-460.0,0.00022084,4]
[365732350,1749858639356,-460.0,0.00022084,4]
[365732351,1749858639365,-460.0,0.00022084,4]
[365732353,1749858639375,-460.0,0.00022084,4]
[365732354,1749858639384,-460.0,0.00022084,4]
[365732355,1749858639393,-85.06509276,0.00022084,4]
[365732378,1749858640714,-448.42723268,0.00022084,4]
[365732426,1749858643618,-269.13865538,0.0002171,2]
[365732428,1749858643629,-62.51395522,0.00022084,4]
[365732430,1749858643638,-168.3473894,0.00022084,4]
[365732432,1749858643650,-291.6526106,0.00022084,4]
[365732434,1749858643660,-349.4573254,0.00022084,4]
[365732639,1749858646612,-110.5426746,0.00022084,4]
[365732641,1749858646621,-201.0,0.00022147,2]
[365732643,1749858646630,-201.0,0.00022164,2]
[365732645,1749858646639,-207.4,0.00022176,2]
[365732647,1749858646649,-5000.0,0.00022176,2]
[365732648,1749858646658,-500.0,0.000222,2]
[365732650,1749858646667,-497.0022997,0.00022234,2]
[365732652,1749858646679,-460.0,0.00022277,2]
[365732654,1749858646689,-400.0,0.00022277,4]
[365732656,1749858646698,-501.63539255,0.00022291,2]
[365732658,1749858646707,-200.19329504,0.00022357,4]
[365732660,1749858646716,-460.0,0.00022357,4]
[365732662,1749858646725,-1299.73,0.00022357,4]
[365732664,1749858646735,-460.0,0.00022357,4]
[365732666,1749858646743,-460.0,0.00022357,4]
[365732668,1749858646753,-460.0,0.00022358,4]
[365732670,1749858646763,-460.0,0.00022358,4]
[365732672,1749858646772,-460.0,0.00022358,4]
[365732674,1749858646781,-460.0,0.00022358,4]
[365732676,1749858646790,-460.0,0.00022358,4]
[365732678,1749858646799,-460.0,0.00022358,4]
[365732680,1749858646809,-209.0,0.0002237,2]
[365732682,1749858646818,-201.0,0.0002244,2]
[365732684,1749858646827,-159.902879,0.00022505,2]
[365732686,1749858646837,-607.93,0.00022551,2]
[365732688,1749858646846,-348.74485928,0.00022558,2]
[365732690,1749858646855,-415.14478771,0.00022631,4]
[365732692,1749858646865,-1299.73,0.00022631,4]
[365732694,1749858646874,-548.36879817,0.00022631,4]
[365732696,1749858646884,-460.0,0.00022631,4]
[365732698,1749858646893,-460.0,0.00022632,4]
[365732700,1749858646903,-460.0,0.00022632,4]
[365732702,1749858646913,-460.0,0.00022632,4]
[365732704,1749858646923,-460.0,0.00022632,4]
[365732706,1749858646933,-460.0,0.00022632,4]
[365732708,1749858646943,-460.0,0.00022632,4]
[365732724,1749858647076,-160.0,0.00022699,2]
[365732726,1749858647086,-2000.0,0.000227,2]
[365732728,1749858647095,-5000.0,0.00022724,2]
[365732730,1749858647105,-160.0,0.00022731,2]
[365732732,1749858647114,-160.0,0.00022731,2]
[365732734,1749858647124,-424.32678023,0.00022731,2]
[365732736,1749858647133,-160.0,0.00022731,2]
[365732738,1749858647143,-229.78555783,0.00022731,2]
[365732740,1749858647153,-835.28007164,0.00022731,2]
[365732742,1749858647166,-213.24139183,0.00022731,2]
[365732744,1749858647176,-160.0,0.00022731,2]
[365732746,1749858647186,-341.01,0.00022895,10]
[365732748,1749858647196,-335.98413157,0.000229,2]
[365732750,1749858647206,-1299.73,0.00022905,4]
[365732752,1749858647215,-460.0,0.00022905,4]
[365732754,1749858647225,-460.0,0.00022906,4]
[365732756,1749858647235,-460.0,0.00022906,4]
[365732758,1749858647244,-323.40393318,0.00022906,4]
[365732760,1749858647256,-136.59606682,0.00022906,4]
[365732762,1749858647266,-460.0,0.00022906,4]
[365732764,1749858647275,-460.0,0.00022906,4]
[365732766,1749858647284,-460.0,0.00022906,4]
[365732768,1749858647294,-400.52068279,0.00023,2]
[365733412,1749858654030,159.902879,0.00013699,2]
[365737126,1749859212445,987.48241065,0.00018,2]
[365737127,1749859212469,3214.28758935,0.00018,2]
[365737128,1749859232022,200.0,0.00024115,120]
[365737129,1749859411117,200.0,0.00024412,120]
[365737130,1749859471421,200.0,0.00023938,120]
[365737131,1749859633136,-300.0,0.00020623,2]
[365737132,1749859633158,-300.0,0.00020623,2]
[365737133,1749859633179,-500.0,0.00020624,2]
[365737134,1749859633199,-500.0,0.00020624,2]
[365737135,1749859633219,-500.0,0.00020624,2]
[365737136,1749859633240,-500.0,0.00020624,2]
[365737137,1749859633260,-500.0,0.00020624,2]
[365737138,1749859633281,-500.0,0.00020624,2]
[365737139,1749859633302,-500.0,0.00020624,2]
[365737140,1749859633322,-500.0,0.00020624,2]
[365737141,1749859633342,-500.0,0.00020624,2]
[365737142,1749859633364,-500.0,0.00020624,2]
[365737143,1749859633385,-261.80362448,0.00020624,2]
[365737144,1749859637090,-238.19637552,0.00020624,2]
[365737145,1749859637111,-499.28247761,0.00020624,2]
[365737146,1749859637135,-410.38654444,0.00020624,2]
[365737147,1749859637319,-170.874369,0.00020694,2]
[365737148,1749859637342,-196.9294306,0.00020809,2]
[365737149,1749859637364,-663.90013549,0.00021548,2]
[365737150,1749859642081,-820.94986451,0.00021548,2]
[365737151,1749859642101,-444.172565,0.00021555,2]
[365737152,1749859642123,-250.0,0.00021622,2]
[365737153,1749859642144,-256.42027088,0.00021709,2]
[365737154,1749859642165,-430.0,0.00021807,4]
[365737155,1749859642188,-460.0,0.00021807,4]
[365737156,1749859642209,-199.58347643,0.00021807,4]
[365737157,1749859642232,-1176.39,0.00021807,4]
[365737158,1749859642254,-460.0,0.00021807,4]
[365737159,1749859642276,-460.0,0.00021807,4]
[365737160,1749859642300,-337.26535723,0.00021807,4]
[365737162,1749859711127,200.0,0.00024462,120]
[365737163,1749859761019,160.155818,0.00013699,2]
[365737164,1749859763163,-1214.2456843,0.00020807,2]
[365737165,1749859763185,-1463.19272457,0.00020809,2]
[365737167,1749859771643,200.0,0.00023771,120]
[365737168,1749859798084,273.59102962,0.00019707,2]
[365737201,1749859831901,-577.26193923,0.00020592,2]
[365737202,1749859831911,-2690.54437713,0.00020809,2]
[365737203,1749859831921,-458.5213604,0.0002081,2]
[365737204,1749859831932,-255.0,0.0002091,2]
[365737205,1749859831941,-255.0,0.00020915,2]
[365737206,1749859831951,-255.0,0.0002092,2]
[365737207,1749859831961,-255.0,0.00020925,2]
[365737208,1749859831970,-326.94452487,0.0002093,2]
[365737209,1749859831979,-22.56659696,0.00021527,2]
[365737210,1749859832068,-1482.92340304,0.00021527,2]
[365737211,1749859832078,-300.0,0.00021806,2]
[365737212,1749859832088,-460.0,0.00021807,4]
[365737213,1749859832097,-460.0,0.00021807,4]
[365737214,1749859832107,-460.0,0.00021807,4]
[365737215,1749859832116,-430.0,0.00021807,4]
[365737216,1749859832125,-430.0,0.00021807,4]
[365737217,1749859832135,-460.0,0.00021807,4]
[365737218,1749859832144,-460.0,0.00021807,4]
[365737219,1749859832154,-400.0,0.00021807,4]
[365737220,1749859832163,-460.0,0.00021807,4]
[365737222,1749859832173,-460.0,0.00021807,4]
[365737223,1749859832182,-460.0,0.00021807,4]
[365737225,1749859832191,-460.0,0.00021807,4]
[365737227,1749859832201,-460.0,0.00021807,4]
[365737228,1749859832210,-460.0,0.00021807,4]
[365737230,1749859832218,-1760.91,0.00021807,4]
[365737232,1749859832228,-460.0,0.00021807,4]
[365737233,1749859832237,-460.0,0.00021807,4]
[365737235,1749859832247,-460.0,0.00021807,4]
[365737237,1749859832256,-480.0,0.00021807,4]
[365737239,1749859832265,-245.54174136,0.00021807,4]
[365737241,1749859832274,-460.0,0.00021807,4]
[365737242,1749859832284,-430.0,0.00021807,4]
[365737244,1749859832293,-430.0,0.00021807,4]
[365737246,1749859832303,-430.0,0.00021807,4]
[365737247,1749859832313,-440.0,0.00021807,4]
[365737248,1749859832322,-460.0,0.00021807,4]
[365737249,1749859832332,-441.12122955,0.00021808,4]
[365737250,1749859832341,-430.0,0.00021808,4]
[365737251,1749859832351,-430.0,0.00021808,4]
[365737253,1749859832360,-430.0,0.00021808,4]
[365737255,1749859832370,-430.0,0.00021808,4]
[365737257,1749859832379,-430.0,0.00021808,4]
[365737259,1749859832389,-430.0,0.00021808,4]
[365737261,1749859832398,-430.0,0.00021808,4]
[365737263,1749859832408,-430.0,0.00021808,4]
[365737265,1749859832417,-460.0,0.00021808,4]
[365737267,1749859832427,-346.24338429,0.00021808,4]
[365737269,1749859832436,-440.0,0.00021808,4]
[365737271,1749859832446,-430.0,0.00021808,4]
[365737273,1749859832456,-430.0,0.00021808,4]
[365737275,1749859832465,-430.0,0.00021808,4]
[365737277,1749859832475,-430.0,0.00021808,4]
[365737278,1749859832484,-412.9794404,0.00021808,2]
[365737279,1749859832494,-500.0,0.00021808,2]
[365737280,1749859832503,-500.0,0.00021808,2]
[365737281,1749859832513,-500.0,0.00021808,2]
[365737282,1749859832522,-516.21225328,0.00021808,2]
[365737283,1749859832532,-500.0,0.00021808,2]
[365737284,1749859832542,-500.0,0.00021808,2]
[365737285,1749859832551,-500.0,0.00021808,2]
[365737286,1749859832561,-500.0,0.00021808,2]
[365737287,1749859832571,-500.0,0.00021808,2]
[365737288,1749859832581,-500.0,0.00021808,2]
[365737289,1749859832590,-500.0,0.00021808,2]
[365737290,1749859832600,-500.0,0.00021808,2]
[365737291,1749859832610,-500.0,0.00021808,2]
[365737292,1749859832619,-500.0,0.00021808,2]
[365737293,1749859832629,-500.0,0.00021808,2]
[365737294,1749859832638,-500.0,0.00021808,2]
[365737295,1749859832648,-386.19581447,0.00021808,2]
[365737296,1749859832658,-500.0,0.00021808,2]
[365737297,1749859832667,-511.59100522,0.00021808,2]
[365737298,1749859832680,-500.0,0.00021808,2]
[365737299,1749859832690,-500.0,0.00021808,2]
[365737300,1749859832700,-500.0,0.00021808,2]
[365737301,1749859832709,-167.95455613,0.00021808,2]
[365737302,1749859832719,-380.0,0.00021808,4]
[365737303,1749859832729,-430.0,0.00021808,4]
[365737304,1749859832739,-401.89756893,0.00021808,4]
[365737305,1749859832748,-430.0,0.00021808,4]
[365737306,1749859832758,-440.0,0.00021808,4]
[365737307,1749859832767,-430.0,0.00021808,4]
[365737308,1749859832776,-175.54712852,0.00021808,4]
[365737309,1749859832785,-309.93730541,0.00021808,4]
[365737310,1749859832795,-303.47442718,0.00021808,4]
[365737311,1749859832804,-460.0,0.00021808,4]
[365737312,1749859832815,-430.0,0.00021808,4]
[365737313,1749859832830,-460.0,0.00021808,4]
[365737314,1749859832839,-460.0,0.00021808,4]
[365737315,1749859832848,-160.71,0.00021808,4]
[365737316,1749859832857,-460.0,0.00021808,4]
[365737317,1749859832867,-460.0,0.00021808,4]
[365737318,1749859832877,-460.0,0.00021808,4]
[365737319,1749859832887,-430.0,0.00021808,4]
[365737320,1749859832897,-392.13753428,0.00021808,4]
[365737321,1749859832906,-440.0,0.00021808,4]
[365737322,1749859832916,-460.0,0.00021808,4]
[365737323,1749859832925,-440.0,0.00021808,4]
[365737324,1749859832934,-430.0,0.00021808,4]
[365737325,1749859832944,-430.0,0.00021808,4]
[365737326,1749859832953,-440.0,0.00021808,4]
[365737327,1749859832963,-460.0,0.00021808,4]
[365737328,1749859832973,-463.06820166,0.00021808,4]
[365737329,1749859832982,-440.0,0.00021808,4]
[365737330,1749859832992,-452.05,0.00021808,4]
[365737331,1749859833001,-556.31320311,0.00021808,4]
[365737332,1749859833010,-430.0,0.00021808,4]
[365737333,1749859833126,-430.0,0.00021808,4]
[365737334,1749859833137,-430.0,0.00021808,4]
[365737335,1749859833147,-436.28304709,0.00021808,4]
[365737336,1749859833156,-214.72553952,0.00021808,4]
[365737337,1749859833166,-567.69,0.00021808,4]
[365737338,1749859833176,-430.0,0.00021808,4]
[365737339,1749859833186,-430.0,0.00021808,4]
[365737340,1749859833196,-430.0,0.00021808,4]
[365737341,1749859833205,-430.0,0.00021808,4]
[365737342,1749859833216,-430.0,0.00021808,4]
[365737343,1749859833226,-430.0,0.00021808,4]
[365737344,1749859833236,-430.0,0.00021808,4]
[365737345,1749859833246,-455.97919011,0.00021808,4]
[365737346,1749859833255,-431.65963659,0.00021808,4]
[365737347,1749859833265,-430.0,0.00021808,4]
[365737348,1749859833275,-430.0,0.00021808,4]
[365737349,1749859833285,-430.0,0.00021808,4]
[365737350,1749859833295,-460.0,0.00021808,4]
[365737351,1749859833304,-460.0,0.00021808,4]
[365737352,1749859833313,-440.0,0.00021808,4]
[365737353,1749859833324,-430.0,0.00021809,4]
[365737354,1749859833334,-430.0,0.00021809,4]
[365737355,1749859833344,-430.0,0.00021809,4]
[365737356,1749859833354,-430.0,0.00021809,4]
[365737357,1749859833363,-316.62747136,0.00021809,4]
[365737358,1749859833373,-430.0,0.00021809,4]
[365737359,1749859833383,-431.06555162,0.00021809,4]
[365737360,1749859833393,-430.0,0.00021809,4]
[365737361,1749859833402,-430.0,0.00021809,4]
[365737362,1749859833412,-430.0,0.00021809,4]
[365737363,1749859833422,-430.0,0.00021809,4]
[365737364,1749859833432,-430.0,0.00021809,4]
[365737365,1749859833442,-430.0,0.00021809,4]
[365737366,1749859833452,-460.0,0.00021809,4]
[365737367,1749859833462,-430.0,0.00021809,4]
[365737368,1749859833472,-430.0,0.00021809,4]
[365737369,1749859833482,-460.0,0.00021809,4]
[365737370,1749859833491,-430.0,0.00021809,4]
[365737371,1749859833501,-430.0,0.00021809,4]
[365737372,1749859833511,-440.0,0.00021809,4]
[365737373,1749859833521,-460.0,0.00021809,4]
[365737374,1749859833530,-532.14061027,0.00021809,4]
[365737375,1749859833540,-500.0,0.00021809,4]
[365737376,1749859833550,-430.0,0.00021809,4]
[365737377,1749859833560,-430.0,0.00021809,4]
[365737378,1749859833570,-430.0,0.00021809,4]
[365737379,1749859833580,-561.81940469,0.00021809,4]
[365737380,1749859833591,-440.0,0.00021809,4]
[365737381,1749859833601,-430.0,0.00021809,4]
[365737382,1749859833610,-430.0,0.00021809,4]
[365737383,1749859833620,-460.0,0.00021809,4]
[365737384,1749859833631,-430.0,0.00021809,4]
[365737385,1749859833640,-460.0,0.00021809,4]
[365737386,1749859833650,-156.79959206,0.00021809,4]
[365737387,1749859833659,-460.0,0.00021809,4]
[365737388,1749859833669,-460.0,0.00021809,4]
[365737389,1749859833679,-460.0,0.00021809,4]
[365737390,1749859833689,-207.57689812,0.00021809,4]
[365737391,1749859833699,-430.0,0.00021809,4]
[365737392,1749859833709,-430.0,0.00021809,4]
[365737393,1749859833719,-460.0,0.00021809,4]
[365737394,1749859833729,-151.0,0.00021809,4]
[365737395,1749859833739,-152.56297425,0.00021809,4]
[365737396,1749859833749,-430.0,0.00021809,4]
[365737397,1749859833759,-500.0,0.00021809,4]
[365737398,1749859833768,-460.0,0.00021809,4]
[365737399,1749859833777,-430.0,0.00021809,4]
[365737400,1749859833787,-430.0,0.00021809,4]
[365737401,1749859833797,-430.0,0.00021809,4]
[365737402,1749859833806,-498.40816944,0.00021809,4]
[365737403,1749859833816,-430.0,0.00021809,4]
[365737404,1749859833829,-450.0,0.00021809,4]
[365737405,1749859833839,-272.91845371,0.00021809,4]
[365737406,1749859833848,-460.0,0.00021809,4]
[365737407,1749859833858,-430.0,0.00021809,4]
[365737408,1749859833867,-440.0,0.00021809,4]
[365737409,1749859833876,-460.0,0.00021809,4]
[365737410,1749859833886,-460.0,0.00021809,4]
[365737411,1749859833895,-460.0,0.00021809,4]
[365737412,1749859833904,-453.43897535,0.00021809,4]
[365737413,1749859833913,-430.0,0.00021809,4]
[365737414,1749859833933,-460.0,0.00021809,4]
[365737415,1749859833943,-460.0,0.00021809,4]
[365737416,1749859833952,-460.0,0.00021809,4]
[365737417,1749859833961,-430.0,0.00021809,4]
[365737418,1749859833972,-430.0,0.00021809,4]
[365737419,1749859833981,-430.0,0.00021809,4]
[365737420,1749859833991,-430.0,0.00021809,4]
[365737421,1749859834000,-430.0,0.00021809,4]
[365737422,1749859834010,-430.0,0.00021809,4]
[365737423,1749859834019,-430.0,0.00021809,4]
[365737424,1749859834029,-483.66223302,0.00021809,4]
[365737425,1749859834038,-430.0,0.00021809,4]
[365737426,1749859834048,-430.0,0.00021809,4]
[365737427,1749859834058,-460.0,0.00021809,2]
[365737428,1749859834067,-440.0,0.00021809,4]
[365737429,1749859834077,-460.0,0.00021809,4]
[365737430,1749859834086,-436.7367056,0.00021809,4]
[365737431,1749859834095,-430.0,0.00021809,4]
[365737432,1749859834104,-500.0,0.00021809,4]
[365737433,1749859834114,-460.0,0.00021809,4]
[365737434,1749859834123,-460.0,0.00021809,4]
[365737435,1749859834133,-460.0,0.00021809,4]
[365737436,1749859834143,-460.0,0.00021809,4]
[365737437,1749859834153,-460.0,0.00021809,4]
[365737438,1749859834164,-430.0,0.00021809,4]
[365737439,1749859834173,-460.0,0.00021809,4]
[365737440,1749859834183,-452.39794678,0.00021809,4]
[365737441,1749859834193,-460.0,0.00021809,4]
[365737442,1749859834202,-460.0,0.00021809,4]
[365737443,1749859834212,-460.0,0.00021809,4]
[365737444,1749859834221,-460.0,0.00021809,4]
[365737445,1749859834231,-529.0,0.00021809,4]
[365737446,1749859834240,-430.80705133,0.00021809,4]
[365737447,1749859834252,-154.589193,0.00021809,4]
[365737448,1749859834265,-430.0,0.00021809,4]
[365737449,1749859834278,-430.0,0.00021809,4]
[365737450,1749859834291,-460.0,0.00021809,4]
[365737451,1749859834305,-430.0,0.00021809,4]
[365737452,1749859834315,-460.0,0.00021809,4]
[365737453,1749859834326,-430.0,0.00021809,4]
[365737454,1749859834341,-430.0,0.00021809,4]
[365737455,1749859834354,-440.0,0.0002181,4]
[365737456,1749859834368,-460.0,0.0002181,4]
[365737457,1749859834380,-500.0,0.0002181,4]
[365737458,1749859834393,-500.0,0.0002181,4]
[365737459,1749859834405,-244.40573008,0.00021836,4]
[365737460,1749859834419,-2250.59753472,0.000219,6]
[365737461,1749859834432,-151.0,0.00022,2]
[365737462,1749859834447,-2250.59753443,0.00022003,6]
[365737463,1749859834459,-5000.0,0.00022052,2]
[365737464,1749859834473,-207.4,0.00022052,2]
[365737465,1749859834486,-537.1,0.00022073,3]
[365737466,1749859834499,-268.55,0.00022073,3]
[365737467,1749859834512,-805.65,0.00022073,3]
[365737468,1749859834524,-460.0,0.00022081,4]
[365737469,1749859834538,-460.0,0.00022081,4]
[365737470,1749859834551,-460.0,0.00022081,4]
[365737471,1749859834563,-460.0,0.00022081,4]
[365737472,1749859834575,-460.0,0.00022081,4]
[365737473,1749859834586,-460.0,0.00022081,4]
[365737474,1749859834597,-460.0,0.00022081,4]
[365737475,1749859834611,-370.0,0.00022081,4]
[365737476,1749859834622,-460.0,0.00022081,4]
[365737477,1749859834634,-460.0,0.00022081,4]
[365737478,1749859834646,-460.0,0.00022081,4]
[365737479,1749859834659,-1760.91,0.00022081,4]
[365737480,1749859834672,-460.0,0.00022081,4]
[365737481,1749859834685,-460.0,0.00022081,4]
[365737482,1749859834699,-460.0,0.00022081,4]
[365737483,1749859834711,-420.0,0.00022081,4]
[365737484,1749859834724,-460.0,0.00022081,4]
[365737485,1749859834737,-1803.674206,0.00022082,2]
[365737486,1749859834749,-5317.94293648,0.00022082,2]
[365737487,1749859834759,-430.0,0.00022082,4]
[365737488,1749859834770,-430.0,0.00022082,4]
[365737489,1749859834781,-430.0,0.00022082,4]
[365737490,1749859834792,-430.88194305,0.00022082,4]
[365737491,1749859834804,-430.0,0.00022082,4]
[365737492,1749859834817,-460.0,0.00022082,4]
[365737493,1749859834834,-460.0,0.00022082,4]
[365737494,1749859834847,-460.0,0.00022082,4]
[365737495,1749859834857,-350.0,0.00022082,4]
[365737496,1749859834868,-460.0,0.00022082,4]
[365737497,1749859834879,-460.0,0.00022082,4]
[365737498,1749859834891,-410.0,0.00022082,4]
[365737499,1749859834903,-460.0,0.00022082,4]
[365737500,1749859834915,-460.0,0.00022082,4]
[365737501,1749859834926,-460.0,0.00022082,4]
[365737502,1749859834936,-460.0,0.00022082,4]
[365737503,1749859834948,-430.0,0.00022082,4]
[365737504,1749859834960,-400.0,0.00022082,4]
[365737505,1749859834972,-460.0,0.00022082,4]
[365737506,1749859834983,-460.0,0.00022082,4]
[365737507,1749859834994,-440.0,0.00022082,4]
[365737508,1749859835008,-410.0,0.00022082,4]
[365737509,1749859835020,-460.0,0.00022082,4]
[365737510,1749859835032,-567.46,0.00022082,4]
[365737511,1749859835044,-460.0,0.00022082,4]
[365737512,1749859835055,-390.0,0.00022082,4]
[365737513,1749859835066,-460.0,0.00022083,4]
[365737514,1749859835079,-460.0,0.00022083,4]
[365737515,1749859835090,-460.0,0.00022083,4]
[365737516,1749859835101,-400.0,0.00022083,4]
[365737517,1749859835112,-410.0,0.00022083,4]
[365737518,1749859835123,-460.0,0.00022083,4]
[365737519,1749859835134,-410.0,0.00022083,4]
[365737520,1749859835145,-460.0,0.00022083,4]
[365737521,1749859835156,-400.0,0.00022083,4]
[365737522,1749859835167,-446.63725914,0.00022083,4]
[365737523,1749859835178,-400.0,0.00022083,4]
[365737524,1749859835189,-400.0,0.00022083,4]
[365737525,1749859835200,-410.0,0.00022083,4]
[365737526,1749859835210,-460.0,0.00022083,4]
[365737527,1749859835221,-460.0,0.00022083,4]
[365737528,1749859835233,-460.0,0.00022083,4]
[365737529,1749859835244,-410.0,0.00022083,4]
[365737530,1749859835255,-400.0,0.00022083,4]
[365737531,1749859835266,-420.0,0.00022083,4]
[365737532,1749859835278,-420.0,0.00022083,4]
[365737533,1749859835289,-410.0,0.00022083,4]
[365737534,1749859835300,-460.0,0.00022083,4]
[365737535,1749859835311,-410.0,0.00022083,4]
[365737536,1749859835322,-460.0,0.00022083,4]
[365737537,1749859835332,-270.38702328,0.00022083,4]
[365737538,1749859835348,-330.09027495,0.00022083,4]
[365737539,1749859835360,-460.0,0.00022083,4]
[365737540,1749859835371,-200.0,0.00022083,4]
[365737541,1749859835383,-460.0,0.00022083,4]
[365737542,1749859835394,-410.0,0.00022083,4]
[365737543,1749859835406,-220.50927666,0.00022084,4]
[365737544,1749859835418,-2250.59753443,0.00022107,6]
[365737545,1749859835437,-2250.59753443,0.0002221,6]
[365737546,1749859835448,-2250.59753443,0.00022314,7]
[365737547,1749859835460,-460.0,0.00022355,4]
[365737548,1749859835472,-460.0,0.00022355,4]
[365737549,1749859835483,-460.0,0.00022355,4]
[365737550,1749859835495,-318.4754596,0.00022355,4]
[365737551,1749859835506,-445.76017232,0.00022355,4]
[365737552,1749859835517,-460.0,0.00022355,4]
[365737553,1749859835530,-460.0,0.00022355,4]